Cogmind - Beta 13 *** ADVENTURER MODE // 2024.07.04 @ 15:49:35 Player: Dmitry Result: Destroyed by D-53 Grenadier with Mini Grenade Launcher Performance ------------- Evolutions (0) 0 Regions Visited (3) 600 Robots Destroyed (34) 170 Value Destroyed (915) 915 Prototype IDs (13) 260 Alien Tech Used (0) 0 Bonus (0) 0 TOTAL SCORE: 1945 Bonus ------- None Cogmind --------- Core Integrity 0/250 Matter 283/300 Energy 264/265 System Corruption 2% Temperature Cool (0) Movement Core (150) Ox2 Location -9/Recycling Parts ------- > --- POWER (1) -------- Improved Ion Engine > --- PROPULSION (2) --- (None) > --- UTILITY (2) ------ Scrap Engine > --- WEAPON (2) ------- Dirty Datajack > --- INVENTORY (5) ---- Arachnoskeleton Scrap Shield Peak State ------------ > --- POWER ------------ Improved Ion Engine > --- PROPULSION ------- Subdweller Monowheel > --- UTILITY ---------- Scrap Engine > --- WEAPON ----------- Improved Assault Rifle Dirty Datajack > --- INVENTORY -------- Arachnoskeleton [Rating: 31] Favorites ----------- Power Improved Ion Engine Engine Improved Ion Engine Propulsion Improved Treads Treads Improved Treads Wheel Subdweller Monowheel Hover Unit Hover Unit Flight Unit Flight Unit Utility Scrap Shield Device Scrap Engine Storage Small Storage Unit Protection Scrap Shield Weapon Improved Assault Rifle Energy Gun Small Laser Ballistic Gun Improved Assault Rifle Ballistic Cannon Light Cannon Launcher Grenade Launcher Slashing Weapon Mining Claw Special Melee Weapon Dirty Datajack Build | -11 -10 -10 -9 ------- Run | Yrd Mat Sub Rec Slots Evolved . | . . . . Power . | . . . . Propulsion . | . . . . Utility . | . . . . Weapon . | . . . . Parts Attached 45 | 6 20 17 2 Power 6 | 1 5 . . Engine 6 | 1 5 . . Core . | . . . . Reactor . | . . . . Propulsion 14 | 2 8 4 . Treads 7 | 2 5 . . Leg . | . . . . Wheel 4 | . . 4 . Hover 2 | . 2 . . Flight 1 | . 1 . . Utility 5 | 1 2 1 1 Device 1 | . . . 1 Storage 1 | 1 . . . Processor . | . . . . Hackware . | . . . . Protection 3 | . 2 1 . Artifact . | . . . . Weapon 20 | 2 5 12 1 Energy Gun 2 | 1 1 . . Energy Cannon . | . . . . Ballistic Gun 8 | 1 2 5 . Ballistic Cannon 3 | . 2 1 . Launcher 5 | . . 5 . Special Weapon . | . . . . Impact Weapon . | . . . . Slashing Weapon 1 | . . 1 . Piercing Weapon . | . . . . Special Melee Weapon 1 | . . . 1 Unidentified Prototypes 1 | . 1 . . Parts Lost 3 | . 1 . 2 Power 1 | . 1 . . Propulsion 1 | . . . 1 Utility . | . . . . Weapon 1 | . . . 1 Highest Loss Streak 2 | . 1 . 2 To Critical Strikes . | . . . . Average Slot Usage (%) 85 | . 92 83 70 Engine 13 | . 13 14 14 Treads 14 | . 11 17 . Wheel 5 | . . 7 14 Hover 3 | . 12 . . Storage 4 | . 14 1 . Protection 12 | . 12 14 . Ballistic Gun 17 | . 6 21 14 Ballistic Cannon 5 | . 20 . . Launcher 3 | . . 5 . Naked Turns . | . . . . Heaviest Build 36 | 10 19 36 31 Greatest Support 46 | 40 46 46 20 Greatest Overweight (x) 2 | . 2 1 1 Average Overweight (x) . | . . . . Largest Inventory Capacity 8 | 8 8 8 5 Average Capacity 6 | 7 8 5 5 Most Carried 8 | 2 8 8 5 Average Carried 5 | . 6 5 4 Final Capacity 8 | 8 8 5 5 Final Carried 8 | 2 8 5 5 Scrap Engine Consumption 14 | . . . 14 Class Distribution -------------------- 88% | Mutant 11% | Subdweller-Mutant Dominant Class ---------------- Mutant | -10/Materials Mutant | -10/Subcaves Mutant | -9/Recycling Resources | -11 -10 -10 -9 ----------- Run | Yrd Mat Sub Rec Matter Collected 1567 | 274 168 1066 59 Remotely . | . . . . Salvage Created 1360 | 190 201 706 263 Parts 91 | 11 21 52 7 Haulers Intercepted . | . . . . Recyclers Shooed . | . . . . Parts Field Recycled . | . . . . Retrieved Matter . | . . . . Parts Self-Destructed 15 | . . 15 . Prevented . | . . . . Kills | -11 -10 -10 -9 ------- Run | Yrd Mat Sub Rec Combat Hostiles Destroyed 22 | . 7 13 2 Guns 14 | . . 12 2 Cannons 7 | . 7 . . AOE 1 | . . 1 . Classes Destroyed 9 | 3 3 2 1 Worker 2 | 2 . . . Tunneler 3 | 3 . . . Recycler 2 | 1 . . 1 Turret 2 | . . 2 . Watcher 3 | . 3 . . Swarmer 4 | . 3 1 . Grunt 7 | . 4 2 1 Sentry 1 | . . . 1 Subdweller 10 | . . 10 . Best Kill Streak 3 | 3 3 2 2 Combat Bots Only 3 | . 3 2 2 Max Kills in Single Turn 1 | 1 1 1 1 Gunslinging . | . . . . Exploded 1 | . . 1 . Melee . | . . . . Uniques/NPCs Destroyed . | . . . . Combat | -11 -10 -10 -9 -------- Run | Yrd Mat Sub Rec Hostile Shots Fired 153 | . 32 98 23 Missed 52 | . 9 37 6 Damage Taken 1276 | . 169 780 327 Core 252 | . 44 99 109 Absorbed by Shields . | . . . . Redirected to Shielding 28 | . 19 9 . Ignored by Resistances 352 | . 56 200 96 Regen/Repaired (Parts) 19 | . 19 . . Core Remaining (%) 100 | 100 . . . Volleys Fired 150 | 14 19 95 22 Largest 2 | 2 2 2 1 Hottest 70 | 60 70 63 23 Shots Fired 226 | 28 39 137 22 Gun 169 | 28 . 119 22 Cannon 41 | . 39 2 . Launcher 16 | . . 16 . Special . | . . . . Kinetic 207 | 14 39 132 22 Thermal 14 | 14 . . . Explosive 5 | . . 5 . Electromagnetic . | . . . . Robot Hit Streak 45 | 14 6 45 28 Robot Miss Streak 3 | 3 3 1 1 Penetration Max . | . . . . Secondary Targets 1 | . . 1 . Max Gunslinging Chain 1 | . . 1 . Shots Hit Robots 162 | 17 24 100 21 Core Hits 63 | 8 12 35 8 Critical Kills 1 | . . 1 . Critical Parts Destroyed 1 | 1 . . . Critical Strikes 3 | 1 1 1 . Destroy 2 | 1 . 1 . Blast 1 | . 1 . . Melee Attacks 2 | . . 2 . Impact . | . . . . Slashing 2 | . . 2 . Piercing . | . . . . Sneak Attacks . | . . . . Combat Hostiles . | . . . . Follow-up Attacks . | . . . . Damage Inflicted 2472 | 178 449 1513 332 Guns 1923 | 178 . 1413 332 Cannons 449 | . 449 . . Explosions 100 | . . 100 . Melee . | . . . . Ramming . | . . . . Kinetic 2362 | 68 449 1513 332 Thermal 110 | 110 . . . Explosive . | . . . . Electromagnetic . | . . . . Impact . | . . . . Slashing . | . . . . Piercing . | . . . . Highest Corruption 2 | . 1 1 2 Average Corruption 1 | . 1 1 1 Corruption Purged . | . . . . Corruption Blocked . | . . . . Effects 42 | . 10 31 1 Message Errors 7 | . 4 3 . Matter Fused 11 | . 1 10 . Heat Flow Errors 9 | . 2 6 1 Energy Discharges 4 | . 2 2 . Data Loss (minor) 5 | . . 5 . Data Loss (major) 1 | . . 1 . Misfires 3 | . 1 2 . Alerts 2 | . . 2 . Overload Shots . | . . . . Overflow Damage 7 | . 7 . . Projectiles 7 | . 7 . . Explosions . | . . . . Melee . | . . . . Knockbacks 5 | . 5 . . Impact . | . . . . Kinetic 5 | . 5 . . Secondary . | . . . . Self-Inflicted Damage 25 | . . 25 . Shots 2 | . . 2 . Rammed . | . . . . Targets Rammed . | . . . . Kicked . | . . . . Crushed . | . . . . Highest Temperature 260 | 40 189 260 210 Average Temperature 51 | 20 31 112 86 Received Heat Transfer 246 | . 66 147 33 Siege Activations . | . . . . Robots Corrupted . | . . . . Combat Hostiles . | . . . . Parts Fried . | . . . . Impact Corruptions . | . . . . Robots Melted . | . . . . Combat Hostiles . | . . . . Parts Melted . | . . . . Heat Transferred 250 | 250 . . . Parts Sabotaged . | . . . . Parts Stolen . | . . . . Parts Stripped . | . . . . Power Chain Reactions . | . . . . Alert | -11 -10 -10 -9 ------- Run | Yrd Mat Sub Rec Peak Influence 190 | 30 129 . 190 Initial 140 | . 16 . 140 Average 48 | 18 32 . 149 Maximum Alert Level . | . . . . Low Security (%) 100 | 100 100 . 100 Level 1 . | . . . . Level 2 . | . . . . Level 3 . | . . . . Level 4 . | . . . . Level 5 . | . . . . High Security . | . . . . Max Security . | . . . . Squads Dispatched . | . . . . Investigation . | . . . . Extermination . | . . . . Reinforcement . | . . . . Assault . | . . . . Garrison . | . . . . Intercept . | . . . . Searches Triggered . | . . . . Construction Impeded . | . . . . Haulers Reinforced . | . . . . Active Scanning Responses . | . . . . Cargo Convoy Interrupts . | . . . . Stealth | -11 -10 -10 -9 --------- Run | Yrd Mat Sub Rec Distress Signals . | . . . . Communications Jammed . | . . . . Distress Signals . | . . . . Times Spotted 37 | . 13 20 4 Peak Tracking Total 4 | . 4 3 3 Tactical Retreats 3 | . . 3 . Traps | -11 -10 -10 -9 ------- Run | Yrd Mat Sub Rec Traps Triggered 9 | . 7 2 . Indirectly . | . . . . Trap Hack Attempts . | . . . . Triggered . | . . . . Disarmed . | . . . . Reprogrammed . | . . . . Reused . | . . . . Traps Extracted . | . . . . Installed . | . . . . Triggered . | . . . . Machines | -11 -10 -10 -9 ---------- Run | Yrd Mat Sub Rec Machines Disabled 2 | . 1 1 . Max in Single Turn 1 | . 1 1 . Machines Repaired . | . . . . Machines Dismantled . | . . . . Machines Sabotaged . | . . . . Overloaded Fab Kills . | . . . . Hacking | -11 -10 -10 -9 --------- Run | Yrd Mat Sub Rec Machines Accessed 15 | . 9 2 4 Terminals 8 | . 7 . 1 Fabricators . | . . . . Repair Stations 1 | . 1 . . Recycling Units 4 | . 1 . 3 Scanalyzers . | . . . . Garrison Access . | . . . . Total Hacks 50 | . 23 11 16 Successful 31 | . 10 11 10 Failed 19 | . 13 . 6 Catastrophic 3 | . 2 . 1 Database Lockouts . | . . . . Manual 16 | . 5 2 9 Terminals 24 | . 20 . 4 Fabricators . | . . . . Repair Stations 2 | . 2 . . Recycling Units 13 | . 1 . 12 Scanalyzers . | . . . . Garrison Access . | . . . . Terminal Hacks 18 | . 7 11 . Record 10 | . . 10 . Prototype ID Bank 1 | . 1 . . Branch Access Points 1 | . 1 . . Alert Level 1 | . 1 . . Locate Traps 1 | . 1 . . Patrol Status 1 | . 1 . . Investigation Status 1 | . 1 . . Registered Prototypes 1 | . 1 . . Derelict Proto ID Bank 1 | . . 1 . Fabricator Hacks . | . . . . Repair Station Hacks 2 | . 2 . . Scan Component 1 | . 1 . . Repair 1 | . 1 . . Recycling Unit Hacks 8 | . 1 . 7 Report Inventory 3 | . 1 . 2 Retrieve Matter 2 | . . . 2 Retrieve Components 3 | . . . 3 Scanalyzer . | . . . . Garrison Access Hacks . | . . . . Unauthorized Hacks 3 | . . . 3 Terminals . | . . . . Fabricators . | . . . . Repair Stations . | . . . . Recycling Units 3 | . . . 3 Reject 3 | . . . 3 Scanalyzers . | . . . . Garrison Access . | . . . . Data Cores Recovered . | . . . . Used . | . . . . Hacking Detections 9 | . 6 . 3 Full Trace Events . | . . . . Feedback Events . | . . . . Feedback Blocked . | . . . . Robot Schematics Acquired . | . . . . Robots Built . | . . . . Authchips . | . . . . Time . | . . . . Total Robot Build Rating . | . . . . Part Schematics Acquired . | . . . . Parts Built . | . . . . Authchips . | . . . . Time . | . . . . Total Part Build Rating . | . . . . Parts Repaired 1 | . 1 . . Time 26 | . 26 . . Parts Recycled . | . . . . Recycled Matter . | . . . . Retrieved Matter . | . . . . Retrieved Components 1 | . . . 1 Parts Scanalyzed . | . . . . Part Schematics Acquired . | . . . . Parts Damaged . | . . . . Bothacking | -11 -10 -10 -9 ------------ Run | Yrd Mat Sub Rec Used RIF Installer . | . . . . Robots Hacked . | . . . . Non-combat . | . . . . Combat . | . . . . Robot Hacks Applied . | . . . . Relay Couplers Released . | . . . . Fabnet Peak Effective % . | . . . . Robots Rewired . | . . . . Allies Hacked . | . . . . Hacks Repelled . | . . . . Allies | -11 -10 -10 -9 -------- Run | Yrd Mat Sub Rec Total Allies . | . . . . Largest Group . | . . . . Highest-Rated Group . | . . . . Highest-Rated Ally . | . . . . Total Orders . | . . . . Ally Attacks . | . . . . Total Damage . | . . . . Kills . | . . . . Allies Corrupted . | . . . . Allies Melted . | . . . . Intel | -11 -10 -10 -9 ------- Run | Yrd Mat Sub Rec Robot Analysis Total . | . . . . Derelict Logs Recovered 3 | . . 3 . Drone Launches . | . . . . Drone Recoveries . | . . . . Exploration | -11 -10 -10 -9 ------------- Run | Yrd Mat Sub Rec Turns Passed 6373 | 275 1708 4049 341 Spaces Moved 4098 | 143 1022 2668 265 Core 8 | 3 5 . . Treads 2070 | 140 472 1458 . Legs . | . . . . Wheels 1475 | . . 1210 265 Hover 545 | . 545 . . Flight . | . . . . Fastest Speed 50 | 50 100 110 110 Average Speed 138 | 157 136 140 110 Slowest Speed 160 | 160 160 160 120 Overloaded Moves . | . . . . Propulsion Burnouts . | . . . . Robots Hopped . | . . . . Cave-ins Triggered . | . . . . Exploration Rate (%) 51 | 9 97 70 30 Regions Visited 3 Branch Regions 2 Pre-discovered Areas . | . . . . Known Exits Taken . | . . . . Unknown Exits Taken 3 | 1 1 1 . Scrap Searched 3 | . . 3 . Spaces Dug 1 | . . 1 . Terrain Destroyed 163 | . . 163 . Melee . | . . . . Projectile . | . . . . AOE 163 | . . 163 . Terrain Rammed . | . . . . Walls Destroyed . | . . . . Machines Disabled . | . . . . Actions | -11 -10 -10 -9 --------- Run | Yrd Mat Sub Rec Total 4584 | 165 1292 2833 294 Wait 214 | . 214 . . Move 4095 | 142 1021 2667 265 Hop . | . . . . Pick Up 26 | 3 9 12 2 Fast Attach 25 | 5 17 3 . Attach 6 | 1 . 3 2 Detach 2 | . 1 1 . Swap 14 | . 3 11 . Drop 34 | . 8 23 3 Fire 150 | 14 19 95 22 Melee 2 | . . 2 . Ram . | . . . . Kick . | . . . . Crush . | . . . . Escape Stasis . | . . . . Rewire . | . . . . Trap . | . . . . Miscellaneous 16 | . . 16 . Route ------- -11/Scrapyard -10/Materials (discovered 5 exits: [*Mat x3] / *Min / *Sub) -10/Subcaves (discovered 3 exits: [*Mat x2] / *Rec) -9/Recycling History --------- Turn | Location | Event 40 | -11/Scrapyard | Discovered new exit (range 16) 276 | -11/Scrapyard | Entered Materials 305 | -10/Materials | Identified exit to Mines 315 | -10/Materials | Build established: Mutant 887 | -10/Materials | Discovered new exit (range 13) 1068 | -10/Materials | Repaired Weapon Shielding 1381 | -10/Materials | Discovered new exit (range 16) 1604 | -10/Materials | Discovered new exit (range 8) 1949 | -10/Materials | Discovered new exit (range 6) 1984 | -10/Materials | Entered Subcaves 2001 | -10/Subcaves | Shifting Twisted Machinery released Sub. Beam Cannon 2006 | -10/Subcaves | Shifting Twisted Machinery released Barrage Gun 2120 | -10/Subcaves | Discovered new exit (range 15) 2601 | -10/Subcaves | Discovered new exit (range 13) 3351 | -10/Subcaves | A swath of the cavern ceiling suddenly collapsed 3388 | -10/Subcaves | Ambushed by Subdweller buried in earth 3717 | -10/Subcaves | Ambushed by Subdweller buried in earth 3726 | -10/Subcaves | Core integrity fell below 50% 3774 | -10/Subcaves | Visited 4L-MR0's lab 4523 | -10/Subcaves | Found Arachnoskeleton 4924 | -10/Subcaves | Visited Clippyterm 5184 | -10/Subcaves | Build established: Subdweller-Mutant 5247 | -10/Subcaves | Shifting Twisted Machinery released Sub. Machine Gun 5247 | -10/Subcaves | Shifting Twisted Machinery released Shrapnel Trap 5411 | -10/Subcaves | Learned location of 1 exit from Materials 5890 | -10/Subcaves | Build established: Mutant 5900 | -10/Subcaves | Discovered new exit (range 16) 6033 | -10/Subcaves | Entered Recycling 6043 | -9/Recycling | Found Scrap Engine 6370 | -9/Recycling | Core integrity fell below 20% 6374 | -9/Recycling | Destroyed by D-53 Grenadier with Mini Grenade Launcher Last Messages --------------- Y-45 Defender destroyed. Scrap Engine consumes Beam Cannon. G-34 Mercenary destroyed. R-06 Scavenger collects Heat Sink. U-05 Engineer lays Concrete. R-06 Scavenger destroyed. U-05 Engineer builds a Wall. R-06 Scavenger collects Tractor Beam. R-06 Scavenger destroyed. U-05 Engineer lays Concrete. The unstable cave ceiling collapses. U-05 Engineer lays Concrete. R-06 Scavenger collects Com. Wheel. The unstable cave ceiling collapses. Imp. Assault Rifle destroyed. U-05 Engineer builds a Wall. R-06 Scavenger destroyed. T-07 Excavator destroyed. R-06 Scavenger collects Lgt. Armor Plating. Sub. Monowheel destroyed. Map ----- +----------------------------------------------------+ | | | | | | | | | | | | | | | | | | | | | ?????????????????????????????????????????????????? | | ????????##???????????????????????????????????????? | | ??????### ???????????????????????????????????????? | | ????# ??????????????????????????????????????? | | ????# ??????????????????????????????????????? | | ????# ??????????????????????????????????????? | | ????# ??????????????????????????????????????? | | ????# ???????????##???##???????????????????? | | ????# ?#????????## ### ##??????????????????? | | ????? #????????# #??????????????????? | | ####??? #????????# ##?????????????????? | | """#????? #?######## ##????????????????? | | "Y"########+#### ### ###"Y"####???????? | | u #???????? | | d r #???????? | | p @ =% #???????? | | #+############## %=## ! ###### #??????? | | #???###/##### ##????????????????? | | #????/[???? d% ##?????????????????? | | #?? ???! ! #??????????????????? | | #?? ???? ![i #??????????????????? | | #?????%! [ =%l u#??????????????????? | | #???? [ [Y #??????????????????? | | #???################??????????????????? | | ### ########?????????????????????????????????????? | | ""####"""#??????#######??????????????????????????? | | Y"####"Y"######## #??????????????????????????? | | #??????????????????????????? | | #??????????????????????????? | | #??????????????????????????? | | #####+########### #??????????????????????????? | | #???#######??????????????????????????? | | % #????????????????????????????????????? | | #????????????????????????????????????? | | ! #????????????????????????????????????? | | #????????????????????????????????????? | | #????????????????????????????????????? | | #????????????????????????????????????? | | #????????????????????????????????????? | | #????????????????????????????????????? | +----------------------------------------------------+ Best States ------------- Heat Dissipation 25 Energy Generation 12 Energy Capacity 265 Matter Stores 300 Matter Capacity 300 Sight Range 16 Terrain Scan Density 10 Armor Coverage 800 Resistance: KI 20 Resistance: TH 20 Resistance: EX 20 Resistance: EM 20 Resistance: I 20 Resistance: S 20 Resistance: P 20 Weapon Shielding 33 Evasion (%) 40 Recoil Reduction 2 Offensive Hacking 10 Item Schematics ----------------- None Robot Schematics ------------------ None Fabricated ------------ Nothing Alien Tech Used ----------------- None Achievements -------------- True Hacker Challenges ------------ None Game ------ Seed BattleRagnarokTorch Manual? 0 Play Time 00:55:43 Cumulative 7.6 hours Start 2024.07.04 @ 14:15:39 End 2024.07.04 @ 15:49:35 Sessions 1 Manual Loads 0 Difficulty Adventurer Special Mode None Game No. 11 Rogue 0 Adventurer 11 Explorer 0 Win Type - Total 0 Types 0/0/0/0/0/0/0/0/0 Lore% 18 Gallery% 15 Achievement% 14 Wizard Run 0 Options --------- Layout 0 ASCII 0 Keyboard 0 Movement Arrows Keybinds 0 Fullscreen 2 Font 36/Smallcaps Map View 76x50 Zoom Use 0% Tactical HUD 0 Map Filters NONE Filters NONE Steam 0 RUN: b017e12f-8f1a-4d7d-8c9c-12fce4169285